fUSD/lending_fUSD_20250611
["ID","MTS","AMOUNT","RATE_DAILY","PERIOD"]
[365363747,1749618662367,-490.0,0.00018575,2]
[365363748,1749618662377,-490.0,0.00018575,2]
[365363749,1749618662658,-548.92469637,0.00018575,2]
[365363750,1749618662683,-816.77,0.00018575,2]
[365363751,1749618662699,-400.21,0.00018575,2]
[365363752,1749618662709,-490.0,0.00018575,2]
[365363753,1749618662718,-490.0,0.00018575,2]
[365363754,1749618662728,-365.81398296,0.00018575,2]
[365363755,1749618662738,-490.0,0.00018575,2]
[365363756,1749618662747,-490.0,0.00018575,2]
[365363757,1749618662757,-5120.11,0.00018575,2]
[365363758,1749618662766,-498.14,0.00018575,2]
[365363759,1749618662775,-1532.14,0.00018575,2]
[365363760,1749618662785,-490.0,0.00018575,2]
[365363761,1749618662795,-150.0,0.00018588,2]
[365363762,1749618662804,-150.0,0.000186,2]
[365363763,1749618662813,-150.0,0.00018667,2]
[365363764,1749618662822,-12454.11207991,0.00018679,2]
[365363765,1749618662832,-201.23350691,0.000187,2]
[365363766,1749618662842,-150.0,0.00018706,2]
[365363767,1749618662851,-324.40475698,0.00018708,2]
[365363768,1749618662860,-2883.14879197,0.00018713,2]
[365363769,1749618662870,-490.0,0.00018739,2]
[365363770,1749618662880,-490.0,0.00018739,2]
[365363771,1749618662890,-816.77,0.00018739,2]
[365363772,1749618662900,-490.0,0.00018739,2]
[365363773,1749618662909,-490.0,0.00018739,2]
[365363774,1749618662920,-490.0,0.00018739,2]
[365363775,1749618662929,-490.0,0.00018739,2]
[365363776,1749618662939,-5120.11,0.00018739,2]
[365363777,1749618662948,-498.14,0.00018739,2]
[365363778,1749618662957,-1532.14,0.00018739,2]
[365363779,1749618662966,-490.0,0.00018739,2]
[365363780,1749618662976,-150.0,0.0001875,2]
[365363781,1749618662985,-150.0,0.000188,2]
[365363782,1749618662994,-150.0,0.00018824,2]
[365363783,1749618663003,-150.0,0.00018857,2]
[365363784,1749618663014,-190.08379901,0.00018904,2]
[365363785,1749618663023,-490.0,0.00018904,2]
[365363786,1749618663033,-816.77,0.00018904,2]
[365363787,1749618663043,-490.0,0.00018904,2]
[365363788,1749618663052,-490.0,0.00018904,2]
[365363789,1749618663061,-490.0,0.00018904,2]
[365363790,1749618663071,-490.0,0.00018904,2]
[365363791,1749618663080,-5120.11,0.00018904,2]
[365363792,1749618663090,-498.14,0.00018904,2]
[365363793,1749618663100,-1532.14,0.00018904,2]
[365363794,1749618663110,-490.0,0.00018904,2]
[365363795,1749618663121,-500.0,0.00018904,2]
[365363796,1749618663131,-150.0,0.00018941,2]
[365363797,1749618663141,-219.19585885,0.00018953,2]
[365363798,1749618663151,-1957.856,0.00018953,2]
[365363799,1749618663160,-207.4,0.00018953,2]
[365363800,1749618663170,-151.0,0.00018953,2]
[365363801,1749618663180,-1855.1,0.00019,2]
[365363802,1749618663193,-1855.1,0.00019,2]
[365363803,1749618663203,-1855.1,0.00019,2]
[365363804,1749618663213,-1855.1,0.00019,2]
[365363805,1749618663223,-1855.1,0.00019,2]
[365363806,1749618663233,-151.0,0.00019,2]
[365363807,1749618663242,-150.0,0.00019,2]
[365363808,1749618663252,-150.0,0.00019,2]
[365363809,1749618663262,-2030.296672,0.00019008,2]
[365363810,1749618663273,-899.61,0.00019041,2]
[365363811,1749618663283,-461.31,0.00019041,2]
[365363812,1749618663292,-796.98,0.00019041,2]
[365363813,1749618663302,-461.31,0.00019041,2]
[365363814,1749618663312,-796.98,0.00019041,2]
[365363815,1749618663322,-461.31,0.00019041,2]
[365363816,1749618663332,-521.11,0.00019041,2]
[365363817,1749618663341,-150.0,0.00019059,2]
[365363818,1749618663351,-2105.41764886,0.00019063,2]
[365363819,1749618663362,-490.0,0.00019068,2]
[365363820,1749618663372,-816.77,0.00019068,2]
[365363821,1749618663382,-490.0,0.00019068,2]
[365363822,1749618663391,-490.0,0.00019068,2]
[365363823,1749618663401,-490.0,0.00019068,2]
[365363824,1749618663411,-490.0,0.00019068,2]
[365363825,1749618663420,-5120.11,0.00019068,2]
[365363826,1749618663430,-498.14,0.00019068,2]
[365363827,1749618663440,-1532.14,0.00019068,2]
[365363828,1749618663450,-386.14,0.00019068,2]
[365363829,1749618663459,-169.79356886,0.00019084,2]
[365363830,1749618663469,-12454.11207991,0.00019086,2]
[365363831,1749618663478,-150.28,0.00019093,2]
[365363832,1749618663487,-2883.14879197,0.00019108,2]
[365363833,1749618663498,-459.26630151,0.00019118,2]
[365363834,1749618663508,-150.0,0.00019143,2]
[365363835,1749618663518,-152.0,0.00019176,6]
[365363836,1749618663528,-150.0,0.00019176,2]
[365363837,1749618663538,-500.0,0.00019178,2]
[365363838,1749618663548,-500.0,0.00019178,2]
[365363839,1749618663558,-500.0,0.00019178,2]
[365363840,1749618663568,-500.0,0.00019178,2]
[365363841,1749618663578,-429.41904915,0.00019178,2]
[365363842,1749618663588,-500.0,0.00019178,2]
[365363843,1749618663598,-500.0,0.00019178,2]
[365363844,1749618663608,-500.0,0.00019178,2]
[365363845,1749618663617,-1163.59,0.00019178,2]
[365363846,1749618663626,-1163.78,0.00019178,2]
[365363847,1749618663636,-454.89,0.00019178,2]
[365363848,1749618663645,-150.0,0.00019178,2]
[365363849,1749618663655,-341.38,0.00019178,2]
[365363850,1749618663665,-354.55,0.00019178,2]
[365363851,1749618663674,-163.35,0.00019178,2]
[365363852,1749618663684,-1163.78,0.00019178,2]
[365363853,1749618663694,-163.35,0.00019178,2]
[365363854,1749618663704,-454.89,0.00019178,2]
[365363855,1749618663714,-354.55,0.00019178,2]
[365363856,1749618663724,-1163.78,0.00019178,2]
[365363857,1749618663733,-163.35,0.00019178,2]
[365363858,1749618663742,-454.89,0.00019178,2]
[365363859,1749618663753,-709.01,0.00019178,2]
[365363860,1749618663763,-163.35,0.00019178,2]
[365363861,1749618663772,-1162.05,0.00019178,2]
[365363862,1749618663783,-354.55,0.00019178,2]
[365363863,1749618663792,-163.35,0.00019178,2]
[365363864,1749618663803,-354.55,0.00019178,2]
[365363865,1749618663813,-357.21,0.00019178,2]
[365363866,1749618663823,-163.35,0.00019178,2]
[365363867,1749618663833,-163.35,0.00019178,2]
[365363868,1749618663842,-163.35,0.00019178,2]
[365363869,1749618663852,-163.35,0.00019178,2]
[365363870,1749618663863,-163.35,0.00019178,2]
[365363871,1749618663872,-163.1,0.00019178,2]
[365363872,1749618663882,-150.0,0.000192,4]
[365363873,1749618663892,-490.0,0.00019232,2]
[365363874,1749618663903,-816.77,0.00019232,2]
[365363875,1749618663912,-490.0,0.00019232,2]
[365363876,1749618663922,-490.0,0.00019232,2]
[365363877,1749618663932,-490.0,0.00019232,2]
[365363878,1749618663942,-263.75,0.00019232,2]
[365363879,1749618663952,-5120.11,0.00019232,2]
[365363880,1749618663963,-498.14,0.00019232,2]
[365363881,1749618663973,-1532.14,0.00019232,2]
[365363882,1749618663983,-150.0,0.0001925,4]
[365363883,1749618663993,-150.0,0.00019294,4]
[365363884,1749618664002,-201.23350691,0.000193,2]
[365363885,1749618664013,-150.0,0.00019333,4]
[365363886,1749618664023,-490.0,0.00019397,2]
[365363887,1749618664032,-816.77,0.00019397,2]
[365363888,1749618664042,-380.66,0.00019397,2]
[365363889,1749618664052,-490.0,0.00019397,2]
[365363890,1749618664061,-490.0,0.00019397,2]
[365363891,1749618664070,-5120.11,0.00019397,2]
[365363892,1749618664080,-498.14,0.00019397,2]
[365363893,1749618664090,-1532.14,0.00019397,2]
[365363894,1749618664099,-150.0,0.000194,4]
[365363895,1749618664108,-587.0,0.000194,2]
[365363896,1749618664118,-150.0,0.00019412,4]
[365363897,1749618664127,-152.709786,0.00019412,2]
[365363898,1749618664136,-152.758224,0.00019412,2]
[365363899,1749618664146,-151.301535,0.00019412,2]
[365363900,1749618664155,-578.996,0.00019425,2]
[365363901,1749618664165,-150.0,0.00019429,4]
[365363902,1749618664174,-158.34,0.00019438,2]
[365363903,1749618664188,-12454.11207991,0.00019493,2]
[365363904,1749618664198,-150.0,0.000195,4]
[365363905,1749618664208,-2883.14879197,0.00019504,2]
[365363906,1749618664217,-200.0,0.0001951,2]
[365363907,1749618664228,-150.0,0.00019529,4]
[365363908,1749618664238,-490.0,0.00019561,2]
[365363909,1749618664247,-816.77,0.00019561,2]
[365363910,1749618664258,-490.0,0.00019561,2]
[365363911,1749618664270,-490.0,0.00019561,2]
[365363912,1749618664279,-5120.11,0.00019561,2]
[365363913,1749618664289,-498.14,0.00019561,2]
[365363914,1749618664298,-1532.14,0.00019561,2]
[365363915,1749618664307,-150.0,0.000196,4]
[365363916,1749618664317,-150.0,0.00019647,4]
[365363917,1749618664327,-168.5,0.000197,2]
[365363918,1749618664336,-150.0,0.00019714,4]
[365363919,1749618664346,-490.0,0.00019726,2]
[365363920,1749618664356,-816.77,0.00019726,2]
[365363921,1749618664365,-176.55557064,0.00019726,2]
[365363922,1749618664374,-490.0,0.00019726,2]
[365363923,1749618664384,-5120.11,0.00019726,2]
[365363924,1749618664393,-498.14,0.00019726,2]
[365363925,1749618664403,-1532.14,0.00019726,2]
[365363926,1749618664412,-150.0,0.0001975,4]
[365363927,1749618664422,-150.0,0.00019765,4]
[365363928,1749618664431,-1000.0,0.00019784,2]
[365363929,1749618664441,-151.0,0.000198,2]
[365363930,1749618664450,-150.0,0.000198,4]
[365363931,1749618664460,-186.3,0.000198,2]
[365363932,1749618664469,-150.132,0.00019805,2]
[365363933,1749618664478,-200.0,0.0001981,2]
[365363934,1749618664487,-151.72650908,0.00019817,2]
[365363935,1749618664497,-500.0,0.0001984,2]
[365363936,1749618664506,-200.0,0.0001984,2]
[365363937,1749618664516,-477.72277932,0.0001984,2]
[365363938,1749618664525,-1071.5978043,0.00019853,2]
[365363939,1749618664535,-1071.5978043,0.0001987,2]
[365363940,1749618664544,-150.0,0.00019882,4]
[365363941,1749618664553,-263.03047044,0.0001989,2]
[365363942,1749618664562,-816.77,0.0001989,2]
[365363943,1749618664572,-490.0,0.0001989,2]
[365363944,1749618664581,-5120.11,0.0001989,2]
[365363945,1749618664590,-498.14,0.0001989,2]
[365363946,1749618664600,-1532.14,0.0001989,2]
[365363947,1749618664610,-477.72277932,0.00019898,2]
[365363948,1749618664619,-162.05377646,0.000199,2]
[365363949,1749618664628,-169.79356886,0.000199,2]
[365363950,1749618664638,-174.53442452,0.000199,2]
[365363951,1749618664647,-201.23350691,0.000199,2]
[365363952,1749618664657,-2883.14879197,0.000199,2]
[365363953,1749618664667,-161.45013076,0.000199,2]
[365363954,1749618664676,-556.87923794,0.000199,2]
[365363955,1749618664686,-12454.11207991,0.000199,2]
[365363956,1749618664695,-1000.0,0.00019904,2]
[365363957,1749618664705,-367.89682195,0.00019909,2]
[365363958,1749618664715,-849.64946805,0.00019912,2]
[365363959,1749618664725,-379.88911971,0.00019915,2]
[365363960,1749618664736,-477.72277932,0.00019917,2]
[365363961,1749618664745,-379.88911971,0.00019922,2]
[365363962,1749618664755,-367.89682195,0.00019927,2]
[365363963,1749618664766,-299.99122585,0.00019928,2]
[365363964,1749618664776,-367.89682195,0.00019931,2]
[365363965,1749618664786,-299.99122585,0.0001995,2]
[365363966,1749618664796,-299.99122585,0.00019957,2]
[365363967,1749618664806,-500.05755497,0.00019973,2]
[365363968,1749618664815,-500.85648561,0.00019973,2]
[365363969,1749618664825,-500.0,0.00019973,2]
[365363970,1749618664834,-535.46330658,0.00019973,2]
[365363971,1749618664844,-500.0,0.00019973,2]
[365363972,1749618664853,-500.0,0.00019973,2]
[365363973,1749618664863,-500.89886832,0.00019973,2]
[365363974,1749618664873,-500.0,0.00019973,2]
[365363975,1749618664882,-500.96347863,0.00019973,2]
[365363976,1749618664892,-500.51719442,0.00019973,2]
[365363977,1749618664902,-500.0,0.00019973,2]
[365363978,1749618664911,-500.0,0.00019973,2]
[365363979,1749618664921,-500.0,0.00019973,2]
[365363980,1749618664931,-512.82714546,0.00019973,2]
[365363981,1749618664940,-500.0,0.00019973,2]
[365363982,1749618664950,-500.0,0.00019973,2]
[365363983,1749618664960,-500.0,0.00019973,2]
[365363984,1749618664969,-512.5011435,0.00019973,2]
[365363985,1749618664979,-269.00214359,0.00019973,2]
[365363986,1749618664988,-151.0,0.00019973,2]
[365363987,1749618664998,-151.0,0.00019973,2]
[365363988,1749618665008,-151.0,0.00019973,2]
[365363989,1749618665017,-208.900931,0.00019973,2]
[365363990,1749618665026,-151.0,0.00019973,2]
[365363991,1749618665036,-151.0,0.00019973,2]
[365363992,1749618665046,-151.0,0.00019973,2]
[365363993,1749618665055,-151.782824,0.00019973,2]
[365363994,1749618665065,-151.251954,0.00019973,2]
[365363995,1749618665075,-1071.5978043,0.00019973,2]
[365363996,1749618665085,-195.3547566,0.00019986,2]
[365363997,1749618665095,-205.351552,0.00019986,2]
[365363998,1749618665104,-522.4412867,0.00019986,2]
[365363999,1749618665114,-500.0,0.00019988,2]
[365364000,1749618665123,-10801.49923527,0.0001999,2]
[365364001,1749618665356,-629.38118903,0.0001999,2]
[365364002,1749618665510,-344.69581749,0.00016438,2]
[365364003,1749618665521,-145.30418251,0.00016438,2]
[365364004,1749618665530,-546.81673531,0.00016438,2]
[365364005,1749618665540,-490.0,0.00016438,2]
[365364006,1749618665549,-490.0,0.00016602,2]
[365364007,1749618665558,-204.0,0.00016646,2]
[365364008,1749618665567,-375.4502696,0.00016767,2]
[365364009,1749618665576,-204.0,0.00017818,3]
[365364010,1749618665586,-204.0,0.0001899,5]
[365364011,1749618665595,-151.0,0.00019412,2]
[365364012,1749618665605,-21848.29461509,0.0001999,2]
[365364013,1749618665614,-379.88911971,0.00019998,2]
[365364014,1749618665624,-300.0,0.00019999,2]
[365364015,1749618665633,-307.71204747,0.00019999,2]
[365364016,1749618665643,-1009.3195,0.00019999,2]
[365364017,1749618665652,-151.0,0.00019999,2]
[365364018,1749618665662,-151.0,0.00019999,2]
[365364019,1749618665671,-153.509279,0.00019999,2]
[365364020,1749618665681,-1000.0,0.00019999,2]
[365364021,1749618665690,-513.84,0.00019999,2]
[365364022,1749618665700,-500.0,0.00019999,2]
[365364023,1749618665710,-500.0,0.00019999,2]
[365364024,1749618665720,-500.0,0.00019999,2]
[365364025,1749618665731,-476.32,0.00019999,2]
[365364026,1749618665740,-150.0,0.00019999,2]
[365364027,1749618665930,-500.0,0.00019999,2]
[365364028,1749618665940,-500.0,0.00019999,2]
[365364029,1749618665950,-19251.94831242,0.0002,3]
[365364030,1749618665962,-15001.65389151,0.0002,3]
[365364031,1749618665977,-21307.83411148,0.0002,3]
[365364032,1749618665988,-383.20020393,0.0002,3]
[365364033,1749618665999,-5219.83778731,0.0002,3]
[365364034,1749618666011,-221853.83229787,0.0002,3]
[365364035,1749618666021,-3705.16532516,0.0002,3]
[365364036,1749618666030,-278.26951687,0.0002,4]
[365364037,1749618666039,-234.03536782,0.0002,4]
[365364038,1749618666048,-46989.76279731,0.0002,2]
[365364039,1749618666059,-14180.05415583,0.0002,2]
[365364040,1749618666068,-3014.0684314,0.0002,2]
[365364041,1749618666078,-999.999999,0.0002,2]
[365364042,1749618666087,-775.0065792,0.0002,7]
[365364043,1749618666096,-356048.07455229,0.0002,2]
[365364044,1749618666283,-490.0,0.00016438,2]
[365364045,1749618666295,-490.0,0.00016438,2]
[365364046,1749618666304,-630.83979607,0.00016438,2]
[365364047,1749618666314,-490.0,0.00016438,2]
[365364048,1749618666323,-490.0,0.00016438,2]
[365364049,1749618666333,-490.0,0.00016438,2]
[365364050,1749618666343,-490.0,0.00016602,2]
[365364051,1749618666353,-496.90249519,0.00016602,2]
[365364052,1749618666362,-490.0,0.00016602,2]
[365364053,1749618666371,-490.0,0.00016767,2]
[365364054,1749618666381,-236.95409492,0.00016767,2]
[365364055,1749618666390,-490.0,0.00016931,2]
[365364056,1749618666399,-452.0420473,0.00017095,2]
[365364057,1749618666409,-1504.60686532,0.00018821,2]
[365364058,1749618666420,-269.24704914,0.00018821,2]
[365364059,1749618666431,-1826.56410682,0.00018821,2]
[365364060,1749618666443,-7891.70950213,0.00018821,2]
[365364061,1749618666452,-151.0,0.00019412,2]
[365364062,1749618666461,-4068.7266887,0.0002,2]
[365364063,1749618666480,-480.0,0.00016438,2]
[365364064,1749618666489,-507.46,0.00016438,2]
[365364065,1749618666498,-1053.01866124,0.0002,2]
[365364066,1749618666509,-378.43528873,0.0002,2]
[365364067,1749618666520,-57780.41165923,0.0002,2]
[365364068,1749618666535,-323.08114491,0.0002,2]
[365364069,1749618666546,-3734.11905869,0.0002,2]
[365364070,1749618666558,-692.17038355,0.0002,2]
[365364071,1749618718002,151.66738391,0.00038364,60]
[365364072,1749618732037,1416.70904323,0.00038364,120]
[365364073,1749618735937,-2500.0,0.00016238,2]
[365364074,1749618735960,-500.0,0.00016238,2]
[365364075,1749618773192,500.0,0.00038364,120]
[365364076,1749618773438,500.0,0.00038364,120]
[365364077,1749618773701,500.0,0.00038364,120]
[365364078,1749618773789,-3400.0,0.00016238,2]
[365364079,1749618773960,500.0,0.00038364,120]
[365364080,1749618774218,500.0,0.00038364,120]
[365364081,1749618774512,500.0,0.00038364,120]
[365364082,1749618774776,500.0,0.00038364,120]
[365364083,1749618775044,500.0,0.00038364,120]
[365364084,1749618775302,500.0,0.00038364,120]
[365364085,1749618775562,500.0,0.00038364,120]
[365364086,1749618776188,500.0,0.00038364,120]
[365364087,1749618776740,365.26,0.00038364,120]
[365364088,1749618789630,200.0,0.00038364,60]
[365364089,1749618933517,1000.0,0.00015974,2]
[365364090,1749618958512,1333.0,0.00024373,120]
[365364091,1749618983680,23900.0,0.00015797,2]
[365364092,1749619001618,204.0,0.00015646,2]
[365364093,1749619061819,250.0,0.00015716,2]
[365364094,1749619073270,1300.1592101,0.00038376,120]
[365364095,1749619084745,153.2,0.00015697,2]
[365364096,1749619101960,2000.0,0.00038376,120]
[365364097,1749619118250,1000.0,0.00038376,120]
[365364099,1749619301319,156.4,0.00013699,2]
[365364100,1749619330496,313.28,0.00015647,2]
[365364101,1749619361639,204.0,0.00015913,2]
[365364102,1749619458917,2800.23,0.00015641,2]
[365364103,1749619486988,150.0,0.00015641,7]
[365364104,1749619508418,1666.79903626,0.00038349,90]
[365364105,1749619509545,768.88337589,0.00038349,120]
[365364106,1749619519291,498.53461658,0.00038349,120]
[365364107,1749619520367,1094.87094518,0.00038349,120]
[365364108,1749619522982,1710.31868266,0.00038349,120]
[365364109,1749619523173,666.0,0.00015671,2]
[365364110,1749619523374,162.41159964,0.00038349,120]
[365364111,1749619526826,1868.60303998,0.0002465,120]
[365364112,1749619528061,434.01916402,0.00023,120]
[365364113,1749619532729,375.7687278,0.0002,120]
[365364114,1749619538531,319.04251134,0.00038349,120]
[365364115,1749619541937,592.28156311,0.00038349,120]
[365364116,1749619542140,523.87224141,0.00038349,120]
[365364117,1749619544410,1513.64907929,0.00038349,120]
[365364118,1749619545314,703.21726615,0.00038349,120]
[365364119,1749619561624,461.17182039,0.00038349,90]
[365364120,1749619563858,276.21346324,0.00038349,120]
[365364121,1749619565595,415.2989458,0.00038349,120]
[365364122,1749619565999,1531.33194456,0.00038349,120]
[365364123,1749619568453,232.1820281,0.00038349,120]
[365364124,1749619569716,190.65209744,0.00038349,60]
[365364125,1749619569945,238.39903164,0.00038349,120]
[365364126,1749619573354,257.60281399,0.00038349,60]
[365364127,1749619574483,1066.8751245,0.00038349,120]
[365364128,1749619579867,182.45019668,0.00038349,120]
[365364129,1749619580586,1060.71152092,0.00038349,120]
[365364130,1749619581660,752.36884848,0.00038349,120]
[365364131,1749619583781,237.12312863,0.00038349,120]
[365364132,1749619587623,903.30727904,0.00038349,120]
[365364133,1749619590836,174.10449157,0.00038349,60]
[365364134,1749619596191,496.03,0.00013817,2]
[365364135,1749619599568,473.0548166,0.00038349,120]
[365364136,1749619606194,-234.42731617,0.00016,2]
[365364137,1749619608878,-237.60549983,0.00016,2]
[365364138,1749619620807,204.22426552,0.00038349,120]
[365364139,1749619621814,228.02761635,0.00038349,120]
[365364140,1749619625064,502.65269461,0.00038349,120]
[365364141,1749619631534,325.0,0.00015913,2]
[365364142,1749619632323,-456.09372579,0.00016081,2]
[365364143,1749619633104,-39.93627421,0.00016081,2]
[365364144,1749619633128,-165.52,0.00016132,2]
[365364145,1749619633150,-250.0,0.00016135,2]
[365364146,1749619633172,-184.46410787,0.00016137,2]
[365364147,1749619633194,-500.0,0.00016164,2]
[365364148,1749619633216,-164.04,0.00016166,2]
[365364149,1749619633238,-300.0,0.00016201,2]
[365364150,1749619633260,-15.9576293,0.00016237,2]
[365364151,1749619646201,-246.4856055,0.00016237,2]
[365364152,1749619653019,729.11157359,0.00038349,120]
[365364153,1749619653706,1592.65397161,0.00038349,120]
[365364154,1749619658136,376.66558879,0.00038349,120]
[365364155,1749619658977,308.10374734,0.00038349,120]
[365364156,1749619663156,500.08070663,0.00038349,120]
[365364157,1749619664798,701.2221654,0.00038349,120]
[365364158,1749619666468,1345.62231984,0.00038349,120]
[365364159,1749619671532,692.83229923,0.00038349,120]
[365364160,1749619673610,2020.0,0.0002,120]
[365364161,1749619678045,1956.79475087,0.00038349,120]
[365364162,1749619687938,306.60528038,0.00038349,120]
[365364163,1749619705651,233.78094444,0.00038349,120]
[365364164,1749619705764,568.34443059,0.00038349,120]
[365364165,1749619707834,2325.028258,0.00038349,120]
[365364166,1749619710331,267.94102812,0.00038349,120]
[365364167,1749619710771,288.63553373,0.00038349,120]
[365364168,1749619711256,1015.29569489,0.00038349,120]
[365364169,1749619711540,3431.8304134,0.00038349,120]
[365364170,1749619711582,238.95695572,0.00038349,120]
[365364171,1749619711862,1359.16456162,0.00038349,120]
[365364172,1749619712105,499.999999,0.00038349,120]
[365364173,1749619712931,190.37774223,0.0002,120]
[365364174,1749619713237,469.4671434,0.00038349,120]
[365364175,1749619713409,987.97726407,0.0002465,120]
[365364176,1749619713881,1635.60170326,0.00038349,120]
[365364177,1749619713925,1599.43101298,0.00038349,120]
[365364178,1749619715312,1307.51643514,0.00038349,120]
[365364179,1749619717073,265.94701842,0.00038349,120]
[365364180,1749619720099,293.06359969,0.00038349,120]
[365364181,1749619721047,1120.94125171,0.00038349,120]
[365364182,1749619721092,515.49059416,0.0001,120]
[365364184,1749619721622,800.0,0.00021,120]
[365364185,1749619724016,156.96902123,0.00038349,120]
[365364186,1749619724077,337.0,0.0002465,120]
[365364187,1749619724947,443.0071193,0.00038349,60]
[365364188,1749619725000,274.2444343,0.00038349,120]
[365364189,1749619725172,2125.91590793,0.00038349,120]
[365364190,1749619725463,1093.39690536,0.00038349,120]
[365364191,1749619725776,986.10823345,0.000246,120]
[365364196,1749619755148,-500.0,0.00016164,2]
[365364197,1749619755172,-204.0,0.0001621,2]
[365364198,1749619755195,-152.57,0.00016237,2]
[365364199,1749619755221,-151.64,0.00016237,2]
[365364200,1749619755243,-152.8,0.00016237,2]
[365364201,1749619755266,-937.5567652,0.00016237,2]
[365364202,1749619755288,-300.0,0.00016237,2]
[365364203,1749619755309,-300.0,0.00016237,2]
[365364204,1749619755330,-2673.0381974,0.00016238,2]
[365364205,1749619809419,2104.46,0.00015928,2]
[365364209,1749619832048,-503.57,0.00016186,2]
[365364211,1749619832057,-497.87,0.00016186,2]
[365364213,1749619832067,-263.5184232,0.00016235,2]
[365364218,1749619832160,-233.1115768,0.00016235,2]
[365364219,1749619832170,-509.39,0.00016235,2]
[365364220,1749619832179,-185.94206342,0.00016237,2]
[365364221,1749619832219,-114.05793658,0.00016237,2]
[365364222,1749619832228,-232.0,0.00016237,2]
[365364223,1749619832237,-523.0,0.00016237,2]
[365364224,1749619832245,-94.63135304,0.00016238,2]
[365364225,1749619832279,-1457.96097743,0.00016238,2]
[365364226,1749619832293,-9980.729894,0.00016238,2]
[365364227,1749619832339,-629.14367813,0.00016238,2]
[365364228,1749619832349,-496.99,0.00016238,2]
[365364229,1749619832358,-304.25,0.00016238,2]
[365364230,1749619832367,-152.63,0.00016238,2]
[365364231,1749619832377,-324.40475698,0.00016337,2]
[365364232,1749619832386,-969.42773462,0.00016338,2]
[365364233,1749619832397,-310.17040042,0.00016338,2]
[365364243,1749619838126,-234.427316,0.00016105,2]
[365364244,1749619838136,-493.88,0.00016186,2]
[365364245,1749619838146,-6777.43690001,0.00016338,2]
[365364246,1749619838155,-196.3862913,0.00016338,2]
[365364247,1749619838165,-2135.91406504,0.00016338,2]
[365364248,1749619838175,-550.41367706,0.00016338,2]
[365364249,1749619838185,-94.54175059,0.00016338,2]
[365364250,1749619838402,-16281.16804941,0.00016338,2]
[365364251,1749619838412,-5000.0,0.00016338,2]
[365364252,1749619838421,-2038.9868,0.00016338,2]
[365364253,1749619838431,-2082.8037,0.00016338,2]
[365364254,1749619838440,-1000.0,0.00016338,2]
[365364255,1749619838450,-2500.0,0.00016338,2]
[365364256,1749619838460,-931.5618068,0.00016389,2]
[365364258,1749619838469,-1389.18968483,0.00016399,2]
[365364260,1749619838478,-476.73,0.00016428,2]
[365364262,1749619838487,-476.73,0.00016428,2]
[365364264,1749619838496,-648.99374093,0.00016428,2]
[365364456,1749619840241,-380.81282777,0.00016186,2]
[365364463,1749619840300,-118.22717223,0.00016186,2]
[365364465,1749619840309,-123.54625907,0.00016428,2]
[365364467,1749619840319,-585.1422113,0.00016437,2]
[365364492,1749619840530,-180.57170935,0.00016437,2]
[365364494,1749619840560,-206.36759028,0.00016437,2]
[365364496,1749619840581,-399.89605202,0.00016437,2]
[365364498,1749619840594,-166.91245946,0.00016437,2]
[365364500,1749619840603,-460.0,0.00016438,2]
[365364502,1749619840613,-460.0,0.00016438,2]